bitfinex-derivatives/quotes_BNBF0:USTF0_20250220
["timestamp","ask_amount","ask_price","bid_price","bid_amount"]
[1740082938027,3.03213086,656.45,656.01,1.13863774]
[1740082938229,3.03213086,656.44,656.01,1.13863774]
[1740082938430,2.20580082,656.46,656.01,1.13863774]
[1740082938630,3.03212084,656.45,656.01,1.13863774]
[1740082938826,3.03212084,656.44,656.01,1.13863774]
[1740082939033,2.20580082,656.46,656.05,1.13863774]
[1740082939230,3.03210266,656.45,656.05,1.13863774]
[1740082939428,3.03210694,656.44,656.05,1.13863774]
[1740082939735,0.643,656.51,656.05,1.13863774]
[1740082939935,3.03211229,656.5,656.05,1.13863774]
[1740082940234,3.03211229,656.49,656.05,1.13863774]
[1740082940429,3.03211229,656.48,656.05,1.13863774]
[1740082940734,3.03211229,656.47,656.05,1.13863774]
[1740082940935,3.03211229,656.46,656.05,1.13863774]
[1740082941137,2.20577585,656.49,655.93,1.13863774]
[1740082941328,2.20577585,656.49,655.94,0.30490593]
[1740082942234,2.20577585,656.48,655.94,0.30490593]
[1740082943228,0.643,656.51,655.94,0.30490593]
[1740082944237,0.643,656.51,655.97,1.13863774]
[1740082945034,0.643,656.51,655.98,0.30488734]
[1740082946232,4.834,656.76,655.98,0.30488734]
[1740082946437,3.0293267,656.75,655.98,0.30488734]
[1740082946739,3.0293267,656.74,655.98,0.30488734]
[1740082946939,3.0293267,656.73,656.02,1.13863774]
[1740082947134,3.0293267,656.72,656.03,0.3048641]
[1740082947339,3.0293267,656.71,656.03,0.3048641]
[1740082947540,3.0293267,656.7,656.03,0.3048641]
[1740082947738,3.0293267,656.69,656.03,0.3048641]
[1740082947938,3.0293267,656.68,656.03,0.3048641]
[1740082948241,3.0293267,656.67,656.03,0.3048641]
[1740082948442,3.0293267,656.66,656.03,0.3048641]
[1740082948739,3.0293267,656.65,656.03,0.3048641]
[1740082948935,3.0293267,656.64,656.03,0.3048641]
[1740082949142,2.20349357,656.65,656.03,0.3048641]
[1740082949439,3.02787606,656.64,656.03,0.3048641]
[1740082949639,2.20349357,656.65,656.03,0.3048641]
[1740082949839,3.02736182,656.64,656.03,0.3048641]
[1740082950040,2.20349357,656.65,656.03,0.3048641]
[1740082950041,2.20349357,656.65,656.1,1.13863774]
[1740082950241,2.20349357,656.65,656.11,0.30482693]
[1740082951137,1.43,656.76,656.11,0.30482693]
[1740082951342,3.02662634,656.75,656.11,0.30482693]
[1740082951541,3.02662634,656.74,656.11,0.30482693]
[1740082951738,3.02662634,656.73,656.11,0.30482693]
[1740082951941,3.02662634,656.72,656.11,0.30482693]
[1740082952145,3.02662634,656.71,656.11,0.30482693]
[1740082952343,3.02662634,656.7,656.11,0.30482693]
[1740082952643,3.02662634,656.69,656.11,0.30482693]
[1740082952835,3.02662634,656.68,656.11,0.30482693]
[1740082953041,3.02662634,656.67,656.11,0.30482693]
[1740082953236,3.02662634,656.66,656.11,0.30482693]
[1740082953443,3.02662634,656.65,656.11,0.30482693]
[1740082953641,3.02662634,656.64,656.11,0.30482693]
[1740082953840,2.20124609,656.65,656.11,1.44346467]
[1740082954044,3.025181,656.64,656.11,1.44346467]
[1740082954244,2.20124609,656.65,656.11,1.44346467]
[1740082954450,3.02474004,656.64,656.11,1.44346467]
[1740082954652,3.02471373,656.63,656.11,1.44346467]
[1740082954951,1.43,656.76,656.11,1.44346467]
[1740082955151,3.02475715,656.75,656.11,1.44346467]
[1740082955353,3.02475715,656.74,656.11,1.44346467]
[1740082955554,3.02475715,656.73,656.11,1.44346467]
[1740082955753,3.02475715,656.72,656.11,1.44346467]
[1740082955952,3.02475715,656.71,656.11,1.44346467]
[1740082956147,3.02475715,656.7,656.11,1.44346467]
[1740082956350,3.02475715,656.69,656.11,1.44346467]
[1740082956548,3.02475715,656.68,656.11,1.44346467]
[1740082956747,3.02475715,656.67,656.11,1.44346467]
[1740082956951,3.02475715,656.66,656.11,0.30482693]
[1740082957154,3.02475715,656.65,656.11,0.30482693]
[1740082957355,3.02475715,656.64,656.11,0.30482693]
[1740082957554,2.20012417,656.66,656.11,0.30482693]
[1740082957755,3.02364822,656.65,656.11,0.30482693]
[1740082958053,3.02364822,656.64,656.11,0.30482693]
[1740082958351,2.20012417,656.66,656.11,0.30482693]
[1740082958554,3.02331656,656.65,656.11,0.30482693]
[1740082958756,3.02331656,656.64,656.11,0.30482693]
[1740082959051,2.20012417,656.65,656.11,0.30482693]
[1740082960658,1.393,656.82,656.11,0.30482693]
[1740082962451,1.393,656.82,656.11,1.44346467]
[1740082964557,2.19440963,656.81,656.11,1.44346467]
[1740082965460,2.19440963,656.81,656.11,0.30482693]
[1740082966657,1.393,656.82,656.11,0.30482693]
[1740082968263,1.393,656.82,656.13,1.13863774]
[1740082968461,1.393,656.82,656.14,0.30481299]
[1740082970966,1.393,656.82,656.32,1.13863774]
[1740082973869,2.19121973,656.81,656.33,1.13863774]
[1740082975363,2.19121973,656.8,656.33,1.13863774]
[1740082976067,3.01264867,656.79,656.33,1.13863774]
[1740082976267,3.01264867,656.78,656.14,0.30481299]
[1740082976465,3.01264867,656.77,656.14,0.30481299]
[1740082976668,3.01264867,656.76,656.14,0.30481299]
[1740082976865,3.01264867,656.75,656.14,0.30481299]
[1740082977066,3.01264867,656.74,656.14,0.30481299]
[1740082977266,2.19121973,656.8,656.14,0.30481299]
[1740082977468,2.19121973,656.73,656.14,0.30481299]
[1740082979367,2.19121973,656.72,656.14,0.30481299]
[1740082981472,2.19121973,656.71,656.14,0.30481299]
[1740082983572,1.754,656.91,656.14,0.30481299]
[1740082983773,3.01404826,656.9,656.14,0.30481299]
[1740082984075,1.754,656.91,656.14,0.30481299]
[1740082984374,2.1922216,656.89,656.14,0.30481299]
[1740082985677,2.1922216,656.88,656.14,0.30481299]
[1740082987073,2.1922216,656.87,656.26,1.13863774]
[1740082987277,2.1922216,656.87,656.27,0.30475261]
[1740082988277,2.1922216,656.86,656.27,0.30475261]
[1740082989683,1.754,656.91,656.27,0.30475261]
[1740082990181,1.754,656.91,656.28,1.13863774]
[1740082990579,1.41,656.97,656.28,1.13863774]
[1740082990777,3.01736916,656.96,656.29,0.30474332]
[1740082990976,3.01736916,656.95,656.29,0.30474332]
[1740082991185,3.01736916,656.94,656.29,0.30474332]
[1740082991383,2.19450473,656.96,656.29,0.30474332]
[1740082993085,2.19450473,656.95,656.32,1.13863774]
[1740082993389,2.19450473,656.95,656.33,0.30472475]
[1740082994685,2.19450473,656.94,656.33,0.30472475]
[1740082996687,1.325,657.02,656.33,0.30472475]
[1740082997383,2.1965995,657.01,656.33,0.30472475]
[1740082999692,5.21842489,657.0,656.33,0.30472475]
[1740082999890,3.02182539,656.99,656.33,0.30472475]
[1740083000084,3.02182539,656.98,656.33,0.30472475]
[1740083000286,3.02182539,656.97,656.33,0.30472475]
[1740083000491,2.1965995,657.0,656.33,0.30472475]
[1740083000492,3.02182539,656.96,656.33,0.30472475]
[1740083000688,3.02182539,656.95,656.33,0.30472475]
[1740083000889,3.02182539,656.94,656.33,0.30472475]
[1740083001086,5.21842489,656.93,656.33,0.30472475]
[1740083001292,3.02182539,656.92,656.33,0.30472475]
[1740083001487,3.02182539,656.91,656.33,0.30472475]
[1740083001693,3.02182539,656.9,656.33,0.30472475]
[1740083001894,2.1965995,656.93,656.33,0.30472475]
[1740083002891,2.1965995,656.93,656.36,1.13863774]
[1740083003096,2.1965995,656.93,656.37,0.30470618]
[1740083003296,2.1965995,656.92,656.37,0.30470618]
[1740083004695,2.1965995,656.91,656.37,0.30470618]
[1740083006197,2.1965995,656.9,656.37,0.30470618]
[1740083007498,2.1965995,656.89,656.37,0.30470618]
[1740083008798,2.1965995,656.88,656.37,0.30470618]
[1740083010398,2.1965995,656.87,656.37,0.30470618]
[1740083012000,2.1965995,656.86,656.37,0.30470618]
[1740083013612,4.356,657.11,656.37,0.30470618]
[1740083013811,3.02615531,657.1,656.37,0.30470618]
[1740083014113,5.22713198,657.09,656.37,0.30470618]
[1740083014312,3.02615531,657.08,656.37,0.30470618]
[1740083014611,3.02615531,657.07,656.41,1.13863774]
[1740083014804,3.02648449,657.06,656.41,1.13863774]
[1740083015009,2.20097667,657.09,656.41,1.13863774]
[1740083015209,3.02649004,657.08,656.41,1.13863774]
[1740083015412,3.02649004,657.07,656.41,1.13863774]
[1740083015611,3.02649004,657.06,656.41,1.13863774]
[1740083015806,3.02649004,657.05,656.41,1.13863774]
[1740083016009,3.02649004,657.04,656.41,1.13863774]
[1740083016312,3.02649004,657.03,656.41,1.13863774]
[1740083016513,3.02649004,657.02,656.37,0.30470618]
[1740083016714,3.02649004,657.01,656.37,0.30470618]
[1740083016910,3.02649004,657.0,656.37,0.30470618]
[1740083017109,3.02649004,656.99,656.37,0.30470618]
[1740083017412,3.02649004,656.98,656.37,0.30470618]
[1740083017612,3.02649004,656.97,656.37,0.30470618]
[1740083017813,3.02649004,656.96,656.37,0.30470618]
[1740083018013,3.02649004,656.95,656.37,0.30470618]
[1740083018207,3.02649004,656.94,656.37,0.30470618]
[1740083018408,3.02649004,656.93,656.37,0.30470618]
[1740083018612,3.02649004,656.92,656.37,0.30470618]
[1740083018812,3.02649004,656.91,656.37,0.30470618]
[1740083019011,2.20097667,656.98,656.37,0.30470618]
[1740083019012,3.02649004,656.9,656.37,0.30470618]
[1740083019216,3.02649004,656.89,656.37,0.30470618]
[1740083019418,5.22746671,656.88,656.37,0.30470618]
[1740083019618,3.02649004,656.87,656.46,1.13863774]
[1740083019811,3.02649004,656.86,656.46,1.13863774]
[1740083020016,2.20097667,656.88,656.46,1.13863774]
[1740083020217,3.02861942,656.87,656.46,1.13863774]
[1740083020415,2.20097667,656.88,656.46,1.13863774]
[1740083020614,3.02863667,656.87,656.46,1.13863774]
[1740083020814,2.20097667,656.88,656.46,1.13863774]
[1740083021018,2.20097667,656.88,656.47,0.30465977]
[1740083021320,3.648,657.08,656.47,0.30465977]
[1740083022515,3.648,657.08,656.56,1.13863774]
[1740083022715,3.648,657.08,656.56,1.44325574]
[1740083025119,3.648,657.08,656.56,0.304618]
[1740083025822,3.02599925,657.07,656.56,0.304618]
[1740083026023,3.02599925,657.06,656.56,0.304618]
[1740083026220,3.02599925,657.05,656.56,0.304618]
[1740083026420,3.02599925,657.04,656.56,0.304618]
[1740083026621,3.02599925,657.03,656.56,0.304618]
[1740083026920,3.02599925,657.02,656.56,0.304618]
[1740083027120,3.02599925,657.01,656.56,0.304618]
[1740083027320,3.02599925,657.0,656.56,0.304618]
[1740083027522,2.20076162,657.07,656.56,0.304618]
[1740083027523,3.02599925,656.99,656.56,0.304618]
[1740083027721,3.02599925,656.98,656.56,0.304618]
[1740083027922,3.02599925,656.97,656.56,0.304618]
[1740083028123,3.02599925,656.96,656.66,1.13863774]
[1740083028323,2.20076162,656.97,656.66,1.13863774]
[1740083030021,3.648,657.08,656.58,1.13863774]
[1740083030323,3.02540321,657.07,656.58,1.13863774]
[1740083030525,3.02540321,657.06,656.58,1.13863774]
[1740083030720,3.02540321,657.05,656.58,1.13863774]
[1740083030927,3.02540321,657.04,656.58,1.13863774]
[1740083031126,3.02540321,657.03,656.58,1.13863774]
[1740083031322,3.02540321,657.02,656.58,1.13863774]
[1740083031524,3.02540321,657.01,656.58,1.13863774]
[1740083031725,2.20014054,657.07,656.59,0.30460409]
[1740083032021,5.22482466,657.06,656.59,0.30460409]
[1740083032221,3.02468412,657.05,656.59,0.30460409]
[1740083032424,3.02468412,657.04,656.59,0.30460409]
[1740083032621,2.20014054,657.06,656.59,0.30460409]
[1740083032823,3.02435461,657.05,656.62,1.13863774]
[1740083033025,3.02435461,657.04,656.62,1.13863774]
[1740083033222,3.02435461,657.03,656.62,1.13863774]
[1740083033427,3.02435461,657.02,656.62,1.13863774]
[1740083033621,2.20014054,657.02,656.62,1.13863774]
[1740083035430,2.20014054,657.02,656.61,1.13863774]
[1740083035728,3.648,657.08,656.61,1.44323255]
[1740083035929,3.02440538,657.07,656.61,1.44323255]
[1740083036223,3.02440538,657.06,656.61,1.44323255]
[1740083036426,3.02440538,657.05,656.61,1.44323255]
[1740083036625,3.02440538,657.04,656.61,1.44323255]
[1740083036822,3.02440538,657.03,656.61,1.44323255]
[1740083037022,2.19952558,657.07,656.61,1.44323255]
[1740083037223,3.02533037,657.06,656.61,1.44323255]
[1740083037423,3.02533037,657.05,656.61,1.44323255]
[1740083037622,3.02533037,657.04,656.61,1.44323255]
[1740083037821,2.19952558,657.07,656.61,1.44323255]
[1740083038024,3.0261392,657.06,656.61,0.30459481]
[1740083038226,3.0261392,657.05,656.61,0.30459481]
[1740083038423,2.058,657.08,656.61,0.30459481]
[1740083038424,3.0261392,657.04,656.61,0.30459481]
[1740083038624,2.20143249,657.04,656.61,0.30459481]
[1740083040332,2.058,657.08,656.61,0.30459481]
[1740083040529,3.02761346,657.07,656.61,0.30459481]
[1740083040827,5.22948381,657.06,656.61,0.30459481]
[1740083041131,3.02761346,657.05,656.61,0.30459481]
[1740083041430,2.20187035,657.06,656.61,0.30459481]
[1740083041633,3.02822776,657.05,656.61,0.30459481]
[1740083041828,3.02822776,657.04,656.61,0.30459481]
[1740083042028,2.20187035,657.06,656.61,0.30459481]
[1740083042228,3.02803041,657.05,656.61,0.30459481]
[1740083042427,2.20187035,657.05,656.61,0.30459481]
[1740083043826,1.605,657.27,656.61,0.30459481]
[1740083044030,3.02794077,657.26,656.61,0.30459481]
[1740083044229,3.02794077,657.25,656.61,0.30459481]
[1740083044431,3.02794077,657.24,656.61,0.30459481]
[1740083044727,3.02794077,657.23,656.61,0.30459481]
[1740083044930,3.02794077,657.22,656.61,0.30459481]
[1740083045131,3.02794077,657.21,656.61,0.30459481]
[1740083045331,3.02794077,657.2,656.61,0.30459481]
[1740083045528,3.02794077,657.19,656.61,0.30459481]
[1740083045733,3.02794077,657.18,656.73,1.13863774]
[1740083045933,3.02794077,657.17,656.73,1.13863774]
[1740083046135,3.02794077,657.16,656.73,1.13863774]
[1740083046432,5.22999898,657.15,656.73,1.13863774]
[1740083046633,3.02794077,657.14,656.73,1.13863774]
[1740083046833,3.02794077,657.13,656.73,1.13863774]
[1740083047028,3.02794077,657.12,656.73,1.13863774]
[1740083047230,3.02794077,657.11,656.73,1.13863774]
[1740083047428,3.02794077,657.1,656.73,1.13863774]
[1740083047631,3.02794077,657.09,656.73,1.13863774]
[1740083047830,5.22999898,657.08,656.73,1.13863774]
[1740083048032,3.02794077,657.07,656.73,1.13863774]
[1740083048233,3.02794077,657.06,656.73,1.13863774]
[1740083048431,3.02794077,657.05,656.73,1.13863774]
[1740083048630,3.02794077,657.04,656.72,1.13863774]
[1740083048830,3.02794077,657.03,656.72,1.13863774]
[1740083049029,3.02794077,657.02,656.72,1.13863774]
[1740083049238,3.02794077,657.01,656.72,1.13863774]
[1740083049431,3.02794077,657.0,656.72,1.13863774]
[1740083049636,2.20205821,657.08,656.72,1.13863774]
[1740083049832,5.22970551,657.07,656.72,1.13863774]
[1740083050037,3.0276473,657.06,656.72,1.13863774]
[1740083050339,3.0276473,657.05,656.72,1.13863774]
[1740083050539,3.0276473,657.04,656.72,1.13863774]
[1740083050732,2.20205821,657.07,656.72,1.13863774]
[1740083050733,3.0276473,657.03,656.72,1.13863774]
[1740083051037,3.0276473,657.02,656.72,1.13863774]
[1740083051236,3.0276473,657.01,656.72,1.13863774]
[1740083051438,3.0276473,657.0,656.7,1.13863774]
[1740083051636,3.02760819,656.99,656.7,1.13863774]
[1740083051836,2.20205821,657.01,656.7,1.13863774]
[1740083052041,3.02762065,657.0,656.7,1.13863774]
[1740083052342,3.02762065,656.99,656.7,1.13863774]
[1740083052542,2.20205821,657.01,656.7,1.13863774]
[1740083052735,3.02763983,657.0,656.7,1.13863774]
[1740083052940,2.20205821,657.01,656.7,1.13863774]
[1740083053237,3.02758808,657.0,656.7,1.13863774]
[1740083053542,2.20205821,657.01,656.61,0.30459481]
[1740083053743,2.20205821,656.99,656.61,0.30459481]
[1740083054440,3.02765687,656.98,656.61,0.30459481]
[1740083054645,2.20205821,656.99,656.61,0.30459481]
[1740083054845,3.02767576,656.98,656.61,0.30459481]
[1740083055146,2.20205821,656.99,656.61,0.30459481]
[1740083055349,3.02768281,656.98,656.61,0.30459481]
[1740083055648,2.20205821,656.98,656.61,0.30459481]
[1740083055848,3.02779549,656.97,656.61,0.30459481]
[1740083056047,3.02779549,656.96,656.61,0.30459481]
[1740083056243,3.02779549,656.95,656.61,0.30459481]
[1740083056449,3.02779549,656.94,656.61,1.44323255]
[1740083056749,2.20205821,656.98,656.61,1.44323255]
[1740083057047,3.02801897,656.97,656.61,1.44323255]
[1740083057249,3.02801897,656.96,656.61,1.44323255]
[1740083057442,3.02801897,656.95,656.61,1.44323255]
[1740083057646,3.02801897,656.94,656.61,1.44323255]
[1740083057843,3.02801897,656.93,656.61,1.44323255]
[1740083058043,3.02801897,656.92,656.61,1.44323255]
[1740083058248,3.02801897,656.91,656.61,1.44323255]
[1740083058550,3.02826245,656.9,656.61,1.44323255]
[1740083058746,2.20205821,656.96,656.61,1.44323255]
[1740083058944,3.02832555,656.95,656.61,1.44323255]
[1740083059147,3.02832555,656.94,656.61,1.44323255]
[1740083059347,3.02832555,656.93,656.61,1.44323255]
[1740083059548,3.02832555,656.92,656.61,1.44323255]
[1740083059748,3.02832555,656.91,656.61,1.44323255]
[1740083059949,3.02832555,656.9,656.61,0.30459481]
[1740083060149,2.20205821,656.95,656.61,0.30459481]
[1740083060350,3.02839197,656.94,656.61,0.30459481]
[1740083060649,3.02839197,656.93,656.61,0.30459481]
[1740083060850,3.02839197,656.92,656.61,0.30459481]
[1740083061050,3.02839197,656.91,656.61,0.30459481]
[1740083061245,2.20205821,656.92,656.61,0.30459481]
[1740083061448,3.02844161,656.91,656.61,0.30459481]
[1740083061648,3.02844161,656.9,656.61,0.30459481]
[1740083061850,2.20205821,656.92,656.61,0.30459481]
[1740083062051,3.02852132,656.91,656.61,0.30459481]
[1740083062246,3.02852132,656.9,656.61,0.30459481]
[1740083062449,2.20205821,656.92,656.61,0.30459481]
[1740083062648,3.02857237,656.91,656.61,0.30459481]
[1740083062851,2.20205821,656.92,656.71,1.13863774]
[1740083063054,3.02853209,656.91,656.71,1.13863774]
[1740083063351,4.344,657.32,656.71,1.13863774]
[1740083063548,3.02861015,657.31,656.71,1.13863774]
[1740083063750,3.02861015,657.3,656.71,1.13863774]
[1740083063950,3.02861015,657.29,656.71,1.13863774]
[1740083064252,3.02861015,657.28,656.71,1.13863774]
[1740083064452,3.02861015,657.27,656.71,1.13863774]
[1740083064653,3.02861015,657.26,656.71,1.13863774]
[1740083064847,3.02861015,657.25,656.71,1.13863774]
[1740083065048,3.02861015,657.24,656.71,1.13863774]
[1740083065247,3.02861015,657.23,656.71,1.13863774]
[1740083065453,3.02861015,657.22,656.7,1.13863774]
[1740083065751,3.02861015,657.21,656.7,1.13863774]
[1740083065952,3.02861015,657.2,656.7,1.13863774]
[1740083066152,3.02861015,657.19,656.7,1.13863774]
[1740083066354,3.02861015,657.18,656.7,1.13863774]
[1740083066550,3.02861015,657.17,656.7,1.13863774]
[1740083066753,3.02861015,657.16,656.7,1.13863774]
[1740083066954,3.02861015,657.15,656.7,1.13863774]
[1740083067255,3.02861015,657.14,656.7,1.13863774]
[1740083067451,3.02861015,657.13,656.61,0.30459481]
[1740083067656,3.02861015,657.12,656.61,0.30459481]
[1740083067857,3.02861015,657.11,656.61,0.30459481]
[1740083068057,3.02861015,657.1,656.61,0.30459481]
[1740083068257,3.02861015,657.09,656.61,0.30459481]
[1740083068458,3.02861015,657.08,656.61,0.30459481]
[1740083068661,3.02861015,657.07,656.61,0.30459481]
[1740083068858,3.02861015,657.06,656.61,0.30459481]
[1740083069056,3.02861015,657.05,656.61,0.30459481]
[1740083069351,3.02861015,657.04,656.61,0.30459481]
[1740083069653,3.02861015,657.03,656.61,0.30459481]
[1740083069857,2.20271899,657.04,656.61,0.30459481]
[1740083069858,3.02861015,657.02,656.61,0.30459481]
[1740083070058,2.20271899,657.04,656.61,0.30459481]
[1740083070059,3.02861015,657.01,656.61,0.30459481]
[1740083070259,3.02861015,657.0,656.61,0.30459481]
[1740083070456,3.02861015,656.99,656.61,0.30459481]
[1740083070659,3.02861015,656.98,656.61,0.30459481]
[1740083070859,3.02861015,656.97,656.61,0.30459481]
[1740083071060,3.02861015,656.96,656.61,0.30459481]
[1740083071362,3.02861015,656.95,656.61,0.30459481]
[1740083071562,3.02861015,656.94,656.61,0.30459481]
[1740083071759,3.02861015,656.93,656.61,0.30459481]
[1740083072060,3.02861015,656.92,656.61,0.30459481]
[1740083072259,3.02861015,656.91,656.61,0.30459481]
[1740083072559,3.02861015,656.9,656.61,0.30459481]
[1740083072753,3.02861015,656.89,656.61,0.30459481]
[1740083072958,2.20271899,656.98,656.61,0.30459481]
[1740083072959,3.02861015,656.88,656.61,0.30459481]
[1740083073154,3.02861015,656.87,656.61,0.30459481]
[1740083073462,3.02861015,656.86,656.61,0.30459481]
[1740083073665,3.02861015,656.85,656.61,0.30459481]
[1740083073865,3.02861015,656.84,656.61,0.30459481]
[1740083074057,3.02861015,656.83,656.61,0.30459481]
[1740083074262,2.20271899,656.88,656.61,0.30459481]
[1740083074462,3.02966523,656.87,656.61,0.30459481]
[1740083074663,3.02966523,656.86,656.61,0.30459481]
[1740083074859,3.02966523,656.85,656.61,0.30459481]
[1740083075058,3.02966523,656.84,656.61,0.30459481]
[1740083075264,2.20271899,656.84,656.61,0.30459481]
[1740083076763,7.747,657.32,656.61,0.30459481]
[1740083076963,3.02944529,657.31,656.61,0.30459481]
[1740083077165,5.23280237,657.3,656.61,0.30459481]
[1740083077464,3.02944529,657.29,656.61,0.30459481]
[1740083077663,3.02944529,657.28,656.61,0.30459481]
[1740083077865,3.02944529,657.27,656.61,0.30459481]
[1740083078066,3.02944529,657.26,656.61,0.30459481]
[1740083078264,3.02944529,657.25,656.61,0.30459481]
[1740083078465,3.02944529,657.24,656.61,0.30459481]
[1740083078764,3.02944529,657.23,656.61,0.30459481]
[1740083078963,3.02944529,657.22,656.61,0.30459481]
[1740083079164,3.02944529,657.21,656.61,0.30459481]
[1740083079366,3.02944529,657.2,656.61,0.30459481]
[1740083079665,3.02944529,657.19,656.61,0.30459481]
[1740083079859,3.02944529,657.18,656.61,0.30459481]
[1740083080065,2.20335708,657.22,656.61,0.30459481]
[1740083080066,3.02944529,657.17,656.61,0.30459481]
[1740083080265,3.02944529,657.16,656.61,0.30459481]
[1740083080466,3.02944529,657.15,656.61,0.30459481]
[1740083080766,3.02944529,657.14,656.61,0.30459481]
[1740083080967,3.02944529,657.13,656.61,0.30459481]
[1740083081161,3.02944529,657.12,656.61,0.30459481]
[1740083081466,3.02944529,657.11,656.61,0.30459481]
[1740083081665,3.02944529,657.1,656.61,0.30459481]
[1740083081864,3.02944529,657.09,656.61,0.30459481]
[1740083082065,3.02944529,657.08,656.61,0.30459481]
[1740083082266,3.02944529,657.07,656.61,0.30459481]
[1740083082466,3.02944529,657.06,656.61,0.30459481]
[1740083082766,3.02944529,657.05,656.61,0.30459481]
[1740083082965,3.02944529,657.04,656.61,0.30459481]
[1740083083165,3.02944529,657.03,656.61,0.30459481]
[1740083083465,3.02944529,657.02,656.61,0.30459481]
[1740083083760,3.02944529,657.01,656.61,0.30459481]
[1740083083967,3.02944529,657.0,656.61,0.30459481]
[1740083084165,3.02944529,656.99,656.61,0.30459481]
[1740083084365,3.02944529,656.98,656.61,0.30459481]
[1740083084561,3.02944529,656.97,656.61,0.30459481]
[1740083084766,3.02944529,656.96,656.61,0.30459481]
[1740083084966,3.02944529,656.95,656.61,0.30459481]
[1740083085163,3.02944529,656.94,656.61,0.30459481]
[1740083085364,3.02944529,656.93,656.61,0.30459481]
[1740083085567,3.02944529,656.92,656.61,0.30459481]
[1740083085767,3.02944529,656.91,656.61,0.30459481]
[1740083086067,3.02944529,656.9,656.61,0.30459481]
[1740083086368,2.20335708,656.92,656.61,0.30459481]
[1740083086569,2.20335708,656.92,656.62,1.13863774]
[1740083087766,7.404,657.32,656.62,1.13863774]
[1740083087967,3.0289321,657.31,656.62,1.13863774]
[1740083088167,3.0289321,657.3,656.62,1.13863774]
[1740083088368,3.0289321,657.29,656.62,1.13863774]
[1740083088569,3.0289321,657.28,656.62,1.13863774]
[1740083088868,3.0289321,657.27,656.62,1.13863774]
[1740083089069,3.0289321,657.26,656.62,1.13863774]
[1740083089268,3.0289321,657.25,656.62,1.13863774]
[1740083089569,3.0289321,657.24,656.62,1.13863774]
[1740083089768,3.0289321,657.23,656.62,1.13863774]
[1740083089964,2.20284167,657.3,656.61,0.30459481]
[1740083089965,3.0289321,657.22,656.61,0.30459481]
[1740083090168,3.0289321,657.21,656.61,0.30459481]
[1740083090365,3.0289321,657.2,656.61,0.30459481]
[1740083090565,3.0289321,657.19,656.61,0.30459481]
[1740083090765,3.0289321,657.18,656.61,0.30459481]
[1740083090969,3.0289321,657.17,656.61,0.30459481]
[1740083091170,3.0289321,657.16,656.61,0.30459481]
[1740083091366,3.0289321,657.15,656.61,0.30459481]
[1740083091563,3.0289321,657.14,656.61,0.30459481]
[1740083091769,3.0289321,657.13,656.61,0.30459481]
[1740083091966,3.0289321,657.12,656.61,0.30459481]
[1740083092172,3.0289321,657.11,656.61,0.30459481]
[1740083092370,2.20284167,657.2,656.61,0.30459481]
[1740083092371,3.0289321,657.1,656.61,0.30459481]
[1740083092570,3.0289321,657.09,656.61,0.30459481]
[1740083092770,3.0289321,657.08,656.61,0.30459481]
[1740083092971,3.0289321,657.07,656.61,0.30459481]
[1740083093172,3.0289321,657.06,656.61,0.30459481]
[1740083093467,3.0289321,657.05,656.61,0.30459481]
[1740083093671,3.0289321,657.04,656.61,0.30459481]
[1740083093872,3.0289321,657.03,656.61,0.30459481]
[1740083094171,3.0289321,657.02,656.61,0.30459481]
[1740083094372,3.0289321,657.01,656.61,0.30459481]
[1740083094673,3.0289321,657.0,656.61,0.30459481]
[1740083094872,3.0289321,656.99,656.61,0.30459481]
[1740083095074,3.0289321,656.98,656.61,0.30459481]
[1740083095274,3.0289321,656.97,656.61,0.30459481]
[1740083095473,3.0289321,656.96,656.61,0.30459481]
[1740083095675,2.20284167,657.02,656.61,0.30459481]
[1740083095970,3.02941474,657.01,656.61,0.30459481]
[1740083096175,3.02941474,657.0,656.61,0.30459481]
[1740083096475,3.02941474,656.99,656.61,0.30459481]
[1740083096672,3.02941474,656.98,656.61,0.30459481]
[1740083096869,3.02941474,656.97,656.61,0.30459481]
[1740083097070,3.02941474,656.96,656.61,0.30459481]
[1740083097274,2.20284167,657.01,656.61,0.30459481]
[1740083097471,3.02956973,657.0,656.61,0.30459481]
[1740083097673,3.02956973,656.99,656.61,0.30459481]
[1740083097872,2.20284167,657.01,656.61,0.30459481]
[1740083098074,3.02954833,657.0,656.61,0.30459481]
[1740083098271,3.02954833,656.99,656.61,0.30459481]
[1740083098474,3.02954833,656.98,656.61,0.30459481]
[1740083098774,3.02975699,656.97,656.61,0.30459481]
[1740083098974,7.163,657.32,656.61,0.30459481]
[1740083099271,3.02974519,657.31,656.61,0.30459481]
[1740083099472,3.02974519,657.3,656.61,0.30459481]
[1740083099676,3.02974519,657.29,656.62,1.13863774]
[1740083099877,3.02974519,657.28,656.62,1.13863774]
[1740083100073,3.02974519,657.27,656.62,1.13863774]
[1740083100272,3.02974519,657.26,656.62,1.13863774]
[1740083100477,3.02974519,657.25,656.62,1.13863774]
[1740083100679,3.02974519,657.24,656.62,1.13863774]
[1740083100879,3.02974519,657.23,656.62,1.13863774]
[1740083101074,2.20353638,657.31,656.62,1.13863774]
[1740083101075,3.02974519,657.22,656.62,1.13863774]